[Event "*** SCC Grand Prix: Titled Tuesday Blitz"]
[Site "Chess.com"]
[Date "2020.07.07"]
[Round "4"]
[White "Yoshikrov"]
[Black "AlexSuv"]
[Result "0-1"]
[WhiteElo "2083"]
[BlackElo "2577"]
[TimeControl "180+1"]
[EndTime "10:40:46 PDT"]
[Termination "AlexSuv won by resignation"]

1. e4 {[%clk 0:03:00.9]} 1... c5 {[%clk 0:02:57.9]} 2. Nf3 {[%clk 0:03:00.7]}
2... e6 {[%clk 0:02:58.2]} 3. d4 {[%clk 0:03:00.8]} 3... d5 {[%clk 0:02:58.5]}
4. exd5 {[%clk 0:02:54.5]} 4... exd5 {[%clk 0:02:59.4]} 5. Bb5+ {[%clk
0:02:50.5]} 5... Nc6 {[%clk 0:02:58.9]} 6. O-O {[%clk 0:02:49.9]} 6... Nf6
{[%clk 0:02:58.2]} 7. Re1+ {[%clk 0:02:49.4]} 7... Be7 {[%clk 0:02:58.5]} 8. Ne5
{[%clk 0:02:44.3]} 8... Bd7 {[%clk 0:02:54.1]} 9. Nxd7 {[%clk 0:02:44.2]} 9...
Qxd7 {[%clk 0:02:53.8]} 10. dxc5 {[%clk 0:02:34.7]} 10... O-O {[%clk 0:02:52.2]}
11. Bg5 {[%clk 0:02:33]} 11... h6 {[%clk 0:02:48.4]} 12. Bh4 {[%clk 0:02:31.6]}
12... Rad8 {[%clk 0:02:31.6]} 13. Nd2 {[%clk 0:02:22.8]} 13... Rfe8 {[%clk
0:02:20.1]} 14. Nf3 {[%clk 0:02:22.1]} 14... Ne4 {[%clk 0:02:13.5]} 15. Bxe7
{[%clk 0:02:19.4]} 15... Qxe7 {[%clk 0:02:14.4]} 16. Bxc6 {[%clk 0:01:42.7]}
16... bxc6 {[%clk 0:02:15.3]} 17. c3 {[%clk 0:01:43.2]} 17... Qxc5 {[%clk
0:02:13.2]} 18. Qd4 {[%clk 0:01:42.3]} 18... Qb5 {[%clk 0:02:13.3]} 19. b4
{[%clk 0:01:31.2]} 19... Qa4 {[%clk 0:02:00.4]} 20. Re2 {[%clk 0:00:56.1]} 20...
Qa3 {[%clk 0:01:41.3]} 21. Rae1 {[%clk 0:00:33]} 21... Re6 {[%clk 0:01:41.1]}
22. Nd2 {[%clk 0:00:16.9]} 22... Qxc3 {[%clk 0:01:07.7]} 23. Qxc3 {[%clk
0:00:15.8]} 23... Nxc3 {[%clk 0:01:07.6]} 24. Rxe6 {[%clk 0:00:16]} 24... fxe6
{[%clk 0:01:08.5]} 25. Nf3 {[%clk 0:00:15.1]} 25... Nxa2 {[%clk 0:01:07.4]} 26.
Rxe6 {[%clk 0:00:15.1]} 26... Nxb4 {[%clk 0:01:07.6]} 27. h3 {[%clk 0:00:14.4]}
27... a5 {[%clk 0:01:07.8]} 28. Re7 {[%clk 0:00:14.6]} 28... d4 {[%clk
0:01:07.1]} 29. Ra7 {[%clk 0:00:14.4]} 29... d3 {[%clk 0:01:07.1]} 30. Nd2
{[%clk 0:00:14.3]} 30... Rd5 {[%clk 0:01:04.1]} 31. f3 {[%clk 0:00:14.7]} 31...
Nc2 {[%clk 0:00:55]} 32. Kf2 {[%clk 0:00:12.2]} 32... Kh7 {[%clk 0:00:54.1]} 33.
f4 {[%clk 0:00:12.3]} 33... Rd4 {[%clk 0:00:52.5]} 34. Kf3 {[%clk 0:00:10.9]}
34... a4 {[%clk 0:00:52.8]} 35. Ra5 {[%clk 0:00:08.2]} 35... a3 {[%clk
0:00:52.4]} 36. g4 {[%clk 0:00:05]} 36... Rb4 {[%clk 0:00:50]} 37. Ra6 {[%clk
0:00:03]} 37... Rb2 {[%clk 0:00:48.3]} 38. Nc4 {[%clk 0:00:03.4]} 38... Rb1
{[%clk 0:00:44.3]} 39. Nxa3 {[%clk 0:00:03.4]} 39... Ra1 {[%clk 0:00:42.6]} 40.
Rxc6 {[%clk 0:00:03.6]} 40... Rxa3 {[%clk 0:00:41.9]} 41. Rd6 {[%clk 0:00:04.5]}
41... d2+ {[%clk 0:00:41.3]} 42. Ke2 {[%clk 0:00:04.8]} 42... Rxh3 {[%clk
0:00:39.9]} 43. Kxd2 {[%clk 0:00:04.6]} 43... Ne3 {[%clk 0:00:40]} 44. Rd3
{[%clk 0:00:04.1]} 44... Nc4+ {[%clk 0:00:38.8]} 45. Ke2 {[%clk 0:00:04.2]}
45... Rxd3 {[%clk 0:00:37]} 46. Kxd3 {[%clk 0:00:05.1]} 46... Nd6 {[%clk
0:00:37.3]} 47. Ke3 {[%clk 0:00:05.2]} 47... Kg6 {[%clk 0:00:37]} 48. Kf3 {[%clk
0:00:06.1]} 48... h5 {[%clk 0:00:36.1]} 49. Kg3 {[%clk 0:00:07]} 49... hxg4
{[%clk 0:00:35.8]} 50. Kxg4 {[%clk 0:00:06.9]} 50... Nf5 {[%clk 0:00:36.4]} 51.
Kf3 {[%clk 0:00:06.7]} 51... Kh5 {[%clk 0:00:36.4]} 52. Ke4 {[%clk 0:00:06.9]}
52... Kg4 {[%clk 0:00:37.3]} 53. Ke5 {[%clk 0:00:07.3]} 53... Nh6 {[%clk
0:00:34.6]} 54. Ke4 {[%clk 0:00:07.6]} 54... Nf7 {[%clk 0:00:30.5]} 55. Ke3
{[%clk 0:00:05.4]} 55... Nd6 {[%clk 0:00:30.5]} 56. Kf2 {[%clk 0:00:04.1]} 56...
Kxf4 {[%clk 0:00:30]} 0-1

[Event "*** SCC Grand Prix: Titled Tuesday Blitz"]
[Site "Chess.com"]
[Date "2020.07.07"]
[Round "4"]
[White "Zhani-Z"]
[Black "barbara25"]
[Result "0-1"]
[WhiteElo "2443"]
[BlackElo "2317"]
[TimeControl "180+1"]
[EndTime "10:40:46 PDT"]
[Termination "barbara25 won on time"]

1. e4 {[%clk 0:03:00.9]} 1... c5 {[%clk 0:02:59.6]} 2. Nf3 {[%clk 0:03:00.1]}
2... d6 {[%clk 0:02:59.9]} 3. Bb5+ {[%clk 0:02:59.1]} 3... Nd7 {[%clk 0:02:59]}
4. O-O {[%clk 0:02:57.8]} 4... Nf6 {[%clk 0:02:57.5]} 5. Re1 {[%clk 0:02:56]}
5... e5 {[%clk 0:02:56.7]} 6. c3 {[%clk 0:02:55.4]} 6... Be7 {[%clk 0:02:56.5]}
7. d4 {[%clk 0:02:55.8]} 7... cxd4 {[%clk 0:02:55.9]} 8. cxd4 {[%clk 0:02:55.6]}
8... O-O {[%clk 0:02:56.1]} 9. Nc3 {[%clk 0:02:56.1]} 9... a6 {[%clk 0:02:55.5]}
10. Bf1 {[%clk 0:02:28.6]} 10... b5 {[%clk 0:02:52.1]} 11. a3 {[%clk 0:02:28.2]}
11... Bb7 {[%clk 0:02:51.5]} 12. Bg5 {[%clk 0:02:27.5]} 12... Rc8 {[%clk
0:02:51.3]} 13. Qd2 {[%clk 0:02:26.7]} 13... h6 {[%clk 0:02:50.7]} 14. Bh4
{[%clk 0:02:26]} 14... Re8 {[%clk 0:02:44.2]} 15. Rad1 {[%clk 0:02:25.2]} 15...
Nh5 {[%clk 0:02:26.5]} 16. Bxe7 {[%clk 0:02:13.9]} 16... Qxe7 {[%clk 0:02:26.3]}
17. dxe5 {[%clk 0:02:13.5]} 17... Nxe5 {[%clk 0:02:26.4]} 18. Nxe5 {[%clk
0:02:07]} 18... dxe5 {[%clk 0:02:24.9]} 19. Qd6 {[%clk 0:01:57.9]} 19... Nf4
{[%clk 0:02:19.2]} 20. g3 {[%clk 0:01:53.5]} 20... Ng6 {[%clk 0:02:16.3]} 21.
Qxe7 {[%clk 0:01:27.9]} 21... Nxe7 {[%clk 0:02:14.7]} 22. a4 {[%clk 0:01:08.3]}
22... b4 {[%clk 0:02:12.9]} 23. Na2 {[%clk 0:01:07.8]} 23... a5 {[%clk
0:02:03.5]} 24. Nc1 {[%clk 0:01:03.8]} 24... Red8 {[%clk 0:01:50.3]} 25. Nb3
{[%clk 0:01:00.6]} 25... Rxd1 {[%clk 0:01:49.3]} 26. Rxd1 {[%clk 0:01:01.5]}
26... Bxe4 {[%clk 0:01:46.5]} 27. Nxa5 {[%clk 0:01:01.3]} 27... Bc2 {[%clk
0:01:38.1]} 28. Rd7 {[%clk 0:00:49.4]} 28... Kf8 {[%clk 0:01:31.4]} 29. b3
{[%clk 0:00:20.9]} 29... g6 {[%clk 0:01:22.1]} 30. Bc4 {[%clk 0:00:17.2]} 30...
Ra8 {[%clk 0:01:19.7]} 31. Nb7 {[%clk 0:00:16.8]} 31... f5 {[%clk 0:01:08.4]}
32. Nd6 {[%clk 0:00:14.5]} 32... e4 {[%clk 0:01:00.3]} 33. Rb7 {[%clk
0:00:12.3]} 33... Rd8 {[%clk 0:00:56]} 34. Rb6 {[%clk 0:00:12.1]} 34... Bd1
{[%clk 0:00:45.5]} 35. a5 {[%clk 0:00:09.1]} 35... Bf3 {[%clk 0:00:44.8]} 36. a6
{[%clk 0:00:07.9]} 36... Nc8 {[%clk 0:00:34.6]} 37. Nxc8 {[%clk 0:00:07.3]}
37... Rd1+ {[%clk 0:00:34.1]} 38. Bf1 {[%clk 0:00:07.3]} 38... Be2 {[%clk
0:00:34.1]} 39. f4 {[%clk 0:00:05.2]} 39... Rxf1+ {[%clk 0:00:26.5]} 40. Kg2
{[%clk 0:00:05.4]} 40... Ra1 {[%clk 0:00:26.1]} 41. a7 {[%clk 0:00:04.2]} 41...
g5 {[%clk 0:00:19.4]} 42. Rb8 {[%clk 0:00:03.9]} 42... Bf3+ {[%clk 0:00:18]} 43.
Kf2 {[%clk 0:00:03.7]} 43... g4 {[%clk 0:00:13]} 44. Ke3 {[%clk 0:00:01.3]}
44... Re1+ {[%clk 0:00:11.3]} 45. Kd4 {[%clk 0:00:01.6]} 45... e3 {[%clk
0:00:10.8]} 46. a8=Q {[%clk 0:00:01.1]} 46... Bxa8 {[%clk 0:00:09.5]} 47. Rxa8
{[%clk 0:00:02]} 47... e2 {[%clk 0:00:10.4]} 0-1

[Event "*** SCC Grand Prix: Titled Tuesday Blitz"]
[Site "Chess.com"]
[Date "2020.07.07"]
[Round "4"]
[White "Duhless"]
[Black "swimmerchess"]
[Result "0-1"]
[WhiteElo "3057"]
[BlackElo "2819"]
[TimeControl "180+1"]
[EndTime "10:40:47 PDT"]
[Termination "swimmerchess won on time"]

1. c4 {[%clk 0:03:00.9]} 1... Nf6 {[%clk 0:02:59.9]} 2. Nc3 {[%clk 0:03:00.3]}
2... g6 {[%clk 0:02:59.9]} 3. e4 {[%clk 0:02:59]} 3... d6 {[%clk 0:02:59.8]} 4.
d4 {[%clk 0:02:59.2]} 4... Bg7 {[%clk 0:03:00.3]} 5. Nf3 {[%clk 0:02:59.6]} 5...
O-O {[%clk 0:03:00.7]} 6. Be2 {[%clk 0:02:59.8]} 6... e5 {[%clk 0:03:01.2]} 7.
O-O {[%clk 0:02:59.8]} 7... Nc6 {[%clk 0:03:01.7]} 8. d5 {[%clk 0:02:59.3]} 8...
Ne7 {[%clk 0:03:02.1]} 9. b4 {[%clk 0:02:58.7]} 9... Nh5 {[%clk 0:03:02.4]} 10.
c5 {[%clk 0:02:57.4]} 10... f5 {[%clk 0:03:00.3]} 11. Ng5 {[%clk 0:02:56.6]}
11... Nf6 {[%clk 0:02:59]} 12. cxd6 {[%clk 0:02:48.7]} 12... cxd6 {[%clk
0:02:58.2]} 13. b5 {[%clk 0:02:30.3]} 13... h6 {[%clk 0:02:50.6]} 14. Ne6 {[%clk
0:02:30.2]} 14... Bxe6 {[%clk 0:02:51]} 15. dxe6 {[%clk 0:02:31.1]} 15... Rc8
{[%clk 0:02:40.3]} 16. Qb3 {[%clk 0:02:25.6]} 16... fxe4 {[%clk 0:02:35.1]} 17.
Rd1 {[%clk 0:02:17.2]} 17... Kh7 {[%clk 0:02:31.9]} 18. g4 {[%clk 0:02:00.2]}
18... d5 {[%clk 0:02:06.5]} 19. g5 {[%clk 0:01:58.8]} 19... hxg5 {[%clk
0:02:07.4]} 20. Bxg5 {[%clk 0:01:57.8]} 20... Qb6 {[%clk 0:01:37.2]} 21. Kh1
{[%clk 0:01:39.4]} 21... d4 {[%clk 0:01:03.3]} 22. Nxe4 {[%clk 0:01:26]} 22...
Nxe4 {[%clk 0:00:53.5]} 23. Bxe7 {[%clk 0:01:25.7]} 23... Rxf2 {[%clk
0:00:32.6]} 24. Qh3+ {[%clk 0:01:13.4]} 24... Kg8 {[%clk 0:00:32.3]} 25. Bd3
{[%clk 0:01:13.3]} 25... Rcc2 {[%clk 0:00:15.6]} 26. Bxe4 {[%clk 0:00:31.5]}
26... Rxh2+ {[%clk 0:00:15.3]} 27. Qxh2 {[%clk 0:00:31.8]} 27... Rxh2+ {[%clk
0:00:16.2]} 28. Kxh2 {[%clk 0:00:32.7]} 28... Qxe6 {[%clk 0:00:17.1]} 29. Bb4
{[%clk 0:00:32.5]} 29... Bh6 {[%clk 0:00:12.7]} 30. Rf1 {[%clk 0:00:26.1]} 30...
Qg4 {[%clk 0:00:12.1]} 31. Bd5+ {[%clk 0:00:25]} 31... Kh8 {[%clk 0:00:11.4]}
32. Rf3 {[%clk 0:00:18.1]} 32... Bf4+ {[%clk 0:00:09.9]} 33. Rxf4 {[%clk
0:00:13.5]} 33... Qxf4+ {[%clk 0:00:10.4]} 34. Kg2 {[%clk 0:00:13.8]} 34... e4
{[%clk 0:00:10]} 35. Bb3 {[%clk 0:00:06.7]} 35... Qf3+ {[%clk 0:00:09.1]} 36.
Kh2 {[%clk 0:00:06.8]} 36... e3 {[%clk 0:00:09]} 37. Rc1 {[%clk 0:00:06.5]}
37... e2 {[%clk 0:00:07.1]} 38. Rc8+ {[%clk 0:00:06.3]} 38... Kh7 {[%clk
0:00:07]} 39. Rc7+ {[%clk 0:00:07.2]} 39... Kh6 {[%clk 0:00:07.5]} 40. Bd2+
{[%clk 0:00:07.1]} 40... g5 {[%clk 0:00:07.1]} 41. Re7 {[%clk 0:00:07.4]} 41...
Qf2+ {[%clk 0:00:06.2]} 42. Kh1 {[%clk 0:00:07.5]} 42... d3 {[%clk 0:00:05.7]}
43. Re6+ {[%clk 0:00:06.5]} 43... Kh5 {[%clk 0:00:06.3]} 44. Re8 {[%clk
0:00:05.1]} 44... Qf1+ {[%clk 0:00:06.3]} 45. Kh2 {[%clk 0:00:04.6]} 45... Qf2+
{[%clk 0:00:06.7]} 46. Kh1 {[%clk 0:00:04.8]} 46... Kh4 {[%clk 0:00:06.6]} 47.
Rh8+ {[%clk 0:00:04.1]} 47... Kg3 {[%clk 0:00:07]} 0-1

[Event "*** SCC Grand Prix: Titled Tuesday Blitz"]
[Site "Chess.com"]
[Date "2020.07.07"]
[Round "4"]
[White "maximnovik"]
[Black "sri5996"]
[Result "1/2-1/2"]
[WhiteElo "2492"]
[BlackElo "2295"]
[TimeControl "180+1"]
[EndTime "10:40:47 PDT"]
[Termination "Game drawn by stalemate"]

1. d3 {[%clk 0:02:31]} 1... c5 {[%clk 0:02:51.9]} 2. d4 {[%clk 0:02:31.9]} 2...
d5 {[%clk 0:02:50.8]} 3. dxc5 {[%clk 0:02:25.8]} 3... e6 {[%clk 0:02:50.3]} 4.
c4 {[%clk 0:02:23.8]} 4... Bxc5 {[%clk 0:02:37.8]} 5. Nc3 {[%clk 0:02:22.4]}
5... Nf6 {[%clk 0:02:37.1]} 6. e3 {[%clk 0:02:21]} 6... O-O {[%clk 0:02:36]} 7.
Nf3 {[%clk 0:02:21.5]} 7... a6 {[%clk 0:02:25.8]} 8. cxd5 {[%clk 0:02:20.8]}
8... exd5 {[%clk 0:02:25.9]} 9. Be2 {[%clk 0:02:21.1]} 9... Nc6 {[%clk
0:02:25.4]} 10. O-O {[%clk 0:02:20.9]} 10... Bg4 {[%clk 0:02:21.4]} 11. b3
{[%clk 0:02:19.8]} 11... Rc8 {[%clk 0:02:15.8]} 12. Bb2 {[%clk 0:02:20.1]} 12...
Ba7 {[%clk 0:02:10.5]} 13. Rc1 {[%clk 0:02:19]} 13... Bb8 {[%clk 0:02:08.8]} 14.
h3 {[%clk 0:02:15.9]} 14... Bh5 {[%clk 0:02:08.2]} 15. Re1 {[%clk 0:02:14.1]}
15... Qd6 {[%clk 0:02:06.6]} 16. g3 {[%clk 0:02:12.3]} 16... Rfe8 {[%clk
0:01:59.5]} 17. Nd4 {[%clk 0:02:05.4]} 17... Bg6 {[%clk 0:01:50.3]} 18. Nxc6
{[%clk 0:02:02.4]} 18... bxc6 {[%clk 0:01:49.4]} 19. Bf3 {[%clk 0:02:02.4]}
19... Ba7 {[%clk 0:01:23]} 20. Kg2 {[%clk 0:01:55]} 20... Ne4 {[%clk 0:01:16.5]}
21. Nxe4 {[%clk 0:01:50.3]} 21... Bxe4 {[%clk 0:01:16.5]} 22. Bxe4 {[%clk
0:01:49.8]} 22... Rxe4 {[%clk 0:01:17.4]} 23. Qf3 {[%clk 0:01:46.4]} 23... Rce8
{[%clk 0:01:13.8]} 24. Rc2 {[%clk 0:01:41.2]} 24... d4 {[%clk 0:01:12.4]} 25.
Rd1 {[%clk 0:01:36.4]} 25... c5 {[%clk 0:00:49.2]} 26. exd4 {[%clk 0:01:30.2]}
26... cxd4 {[%clk 0:00:48.3]} 27. Qxe4 {[%clk 0:01:24.4]} 27... Rxe4 {[%clk
0:00:46.3]} 28. Rc8+ {[%clk 0:01:24.5]} 28... Qf8 {[%clk 0:00:45.2]} 29. Rxf8+
{[%clk 0:01:24]} 29... Kxf8 {[%clk 0:00:46.1]} 30. Kf3 {[%clk 0:01:24.2]} 30...
f5 {[%clk 0:00:45.2]} 31. Rc1 {[%clk 0:01:15.2]} 31... Kf7 {[%clk 0:00:43.1]}
32. Rc7+ {[%clk 0:00:48.9]} 32... Re7 {[%clk 0:00:42.5]} 33. Rxe7+ {[%clk
0:00:39.1]} 33... Kxe7 {[%clk 0:00:43.4]} 34. Ke2 {[%clk 0:00:39.1]} 34... d3+
{[%clk 0:00:25.7]} 35. Kxd3 {[%clk 0:00:37]} 35... Bxf2 {[%clk 0:00:25.7]} 36.
Bxg7 {[%clk 0:00:31.9]} 36... Bxg3 {[%clk 0:00:25.4]} 37. b4 {[%clk 0:00:30.2]}
37... Ke6 {[%clk 0:00:23.8]} 38. a4 {[%clk 0:00:27.2]} 38... Kd5 {[%clk
0:00:20.3]} 39. Bd4 {[%clk 0:00:25.2]} 39... Bd6 {[%clk 0:00:19.9]} 40. b5
{[%clk 0:00:24.4]} 40... axb5 {[%clk 0:00:19.9]} 41. axb5 {[%clk 0:00:24.8]}
41... Bb8 {[%clk 0:00:18.8]} 42. Bf2 {[%clk 0:00:23.6]} 42... Bd6 {[%clk
0:00:16.8]} 43. b6 {[%clk 0:00:22.5]} 43... Kc6 {[%clk 0:00:16.9]} 44. Kc4
{[%clk 0:00:21.1]} 44... Bb8 {[%clk 0:00:15.8]} 45. Bd4 {[%clk 0:00:19.3]} 45...
Bg3 {[%clk 0:00:15.7]} 46. Kd3 {[%clk 0:00:18.3]} 46... Be1 {[%clk 0:00:15.1]}
47. Ke2 {[%clk 0:00:17.5]} 47... Ba5 {[%clk 0:00:15.1]} 48. Kf3 {[%clk
0:00:17.7]} 48... Bxb6 {[%clk 0:00:12.5]} 49. Bxb6 {[%clk 0:00:17.3]} 49... Kxb6
{[%clk 0:00:13.4]} 50. Kf4 {[%clk 0:00:17.7]} 50... Kc6 {[%clk 0:00:14.1]} 51.
Kxf5 {[%clk 0:00:18.2]} 51... Kd6 {[%clk 0:00:14.7]} 52. Kf6 {[%clk 0:00:18.6]}
52... Kd7 {[%clk 0:00:14.4]} 53. Kf7 {[%clk 0:00:18.3]} 53... h5 {[%clk
0:00:13.5]} 54. h4 {[%clk 0:00:17.8]} 54... Kd8 {[%clk 0:00:13.1]} 55. Kg6
{[%clk 0:00:16.9]} 55... Ke8 {[%clk 0:00:13.6]} 56. Kxh5 {[%clk 0:00:17.3]}
56... Kf8 {[%clk 0:00:14.3]} 57. Kg6 {[%clk 0:00:17.8]} 57... Kg8 {[%clk
0:00:15.1]} 58. h5 {[%clk 0:00:18]} 58... Kh8 {[%clk 0:00:16]} 59. h6 {[%clk
0:00:18.6]} 59... Kg8 {[%clk 0:00:16.9]} 60. h7+ {[%clk 0:00:19.1]} 60... Kh8
{[%clk 0:00:17.8]} 61. Kh6 {[%clk 0:00:19.6]} 1/2-1/2

[Event "*** SCC Grand Prix: Titled Tuesday Blitz"]
[Site "Chess.com"]
[Date "2020.07.07"]
[Round "4"]
[White "Hippotaner"]
[Black "Kopytkin"]
[Result "0-1"]
[WhiteElo "2302"]
[BlackElo "2460"]
[TimeControl "180+1"]
[EndTime "10:40:47 PDT"]
[Termination "Kopytkin won by resignation"]

1. e4 {[%clk 0:03:00.9]} 1... Nf6 {[%clk 0:02:59]} 2. d3 {[%clk 0:02:59.3]} 2...
e5 {[%clk 0:02:58.5]} 3. Nd2 {[%clk 0:02:59.7]} 3... Nc6 {[%clk 0:02:58.7]} 4.
Ngf3 {[%clk 0:03:00.1]} 4... d5 {[%clk 0:02:59]} 5. g3 {[%clk 0:03:00]} 5... g6
{[%clk 0:02:58.5]} 6. Bg2 {[%clk 0:03:00.2]} 6... Bg7 {[%clk 0:02:59]} 7. O-O
{[%clk 0:03:00.8]} 7... O-O {[%clk 0:02:59.6]} 8. Re1 {[%clk 0:03:01.2]} 8...
Re8 {[%clk 0:02:59.9]} 9. exd5 {[%clk 0:03:01.5]} 9... Nxd5 {[%clk 0:02:59.6]}
10. Nc4 {[%clk 0:03:02]} 10... f6 {[%clk 0:02:59.5]} 11. a4 {[%clk 0:03:01.8]}
11... Bg4 {[%clk 0:02:56.7]} 12. h3 {[%clk 0:03:01.3]} 12... Be6 {[%clk
0:02:56.9]} 13. Nfd2 {[%clk 0:03:01]} 13... Qd7 {[%clk 0:02:43.6]} 14. Kh2
{[%clk 0:03:00.6]} 14... Rad8 {[%clk 0:02:42.4]} 15. Ne4 {[%clk 0:03:00.5]}
15... b6 {[%clk 0:02:42.9]} 16. a5 {[%clk 0:02:59.3]} 16... h6 {[%clk
0:02:39.3]} 17. c3 {[%clk 0:02:59]} 17... f5 {[%clk 0:02:37.7]} 18. Ned2 {[%clk
0:02:50.4]} 18... Nde7 {[%clk 0:02:24.5]} 19. axb6 {[%clk 0:02:44.7]} 19... axb6
{[%clk 0:02:23.7]} 20. Bf1 {[%clk 0:02:24.3]} 20... Kh7 {[%clk 0:02:21.8]} 21.
Qc2 {[%clk 0:02:21.1]} 21... Bf7 {[%clk 0:02:07]} 22. Nf3 {[%clk 0:02:17.5]}
22... Bxc4 {[%clk 0:02:03.7]} 23. dxc4 {[%clk 0:02:18.4]} 23... e4 {[%clk
0:02:04.2]} 24. Ng1 {[%clk 0:02:15.9]} 24... Ne5 {[%clk 0:02:02.4]} 25. Bf4
{[%clk 0:02:15]} 25... N7c6 {[%clk 0:02:00.5]} 26. Rad1 {[%clk 0:02:10.4]} 26...
Qf7 {[%clk 0:01:59.9]} 27. b3 {[%clk 0:02:05.9]} 27... g5 {[%clk 0:01:48.8]} 28.
Be3 {[%clk 0:02:04.2]} 28... Kh8 {[%clk 0:01:29.8]} 29. Bd4 {[%clk 0:02:02.2]}
29... Rd7 {[%clk 0:01:21]} 30. b4 {[%clk 0:01:44.9]} 30... Red8 {[%clk
0:01:19.4]} 31. Bxe5 {[%clk 0:01:34]} 31... Nxe5 {[%clk 0:01:19.5]} 32. c5
{[%clk 0:01:26.8]} 32... bxc5 {[%clk 0:01:16.1]} 33. bxc5 {[%clk 0:01:27.7]}
33... c6 {[%clk 0:00:54.3]} 34. Bg2 {[%clk 0:01:17.7]} 34... Nd3 {[%clk
0:00:49.8]} 35. Re2 {[%clk 0:01:17.4]} 35... Nxc5 {[%clk 0:00:43.2]} 36. Rxd7
{[%clk 0:01:13.9]} 36... Qxd7 {[%clk 0:00:43.1]} 37. f3 {[%clk 0:01:11.9]} 37...
Qd3 {[%clk 0:00:34.5]} 38. fxe4 {[%clk 0:01:09.4]} 38... Qxc2 {[%clk 0:00:34.4]}
39. Rxc2 {[%clk 0:01:10.3]} 39... Nxe4 {[%clk 0:00:34.3]} 40. Bxe4 {[%clk
0:01:07.9]} 40... fxe4 {[%clk 0:00:34.5]} 41. Ne2 {[%clk 0:01:08]} 41... e3
{[%clk 0:00:32.4]} 42. Kg2 {[%clk 0:01:07.7]} 42... Rd2 {[%clk 0:00:31.9]} 43.
Rc1 {[%clk 0:00:55.6]} 43... Rxe2+ {[%clk 0:00:31.6]} 44. Kf3 {[%clk 0:00:56.5]}
44... Rh2 {[%clk 0:00:31.2]} 45. Kxe3 {[%clk 0:00:56.1]} 45... Rxh3 {[%clk
0:00:31.2]} 46. Kf3 {[%clk 0:00:53.3]} 46... Be5 {[%clk 0:00:31]} 47. Re1 {[%clk
0:00:51.8]} 47... Rxg3+ {[%clk 0:00:29.4]} 48. Kf2 {[%clk 0:00:52]} 48... Bf4
{[%clk 0:00:29.2]} 49. Re8+ {[%clk 0:00:52.1]} 49... Kg7 {[%clk 0:00:29.2]} 50.
Re7+ {[%clk 0:00:53]} 50... Kg6 {[%clk 0:00:29.6]} 51. Re6+ {[%clk 0:00:53.9]}
51... Kh5 {[%clk 0:00:29.9]} 52. Rxc6 {[%clk 0:00:54.7]} 52... Rd3 {[%clk
0:00:28.2]} 53. c4 {[%clk 0:00:54.8]} 53... g4 {[%clk 0:00:27.9]} 54. Rc5+
{[%clk 0:00:52.1]} 54... Kh4 {[%clk 0:00:27.5]} 55. Rf5 {[%clk 0:00:52.5]} 55...
Bg5 {[%clk 0:00:22.8]} 56. c5 {[%clk 0:00:52.2]} 56... Rc3 {[%clk 0:00:22.4]}
57. Rd5 {[%clk 0:00:51.7]} 57... Be3+ {[%clk 0:00:20.5]} 58. Kg2 {[%clk
0:00:50.7]} 58... Rxc5 {[%clk 0:00:19.5]} 59. Rd1 {[%clk 0:00:50.5]} 59... Bf4
{[%clk 0:00:19.2]} 60. Rh1+ {[%clk 0:00:49.9]} 60... Kg5 {[%clk 0:00:19.7]} 61.
Rd1 {[%clk 0:00:49.2]} 61... Rc2+ {[%clk 0:00:19.8]} 62. Kf1 {[%clk 0:00:47.8]}
62... h5 {[%clk 0:00:20.2]} 63. Rd5+ {[%clk 0:00:47.6]} 63... Kh4 {[%clk
0:00:20.6]} 64. Rd3 {[%clk 0:00:47.9]} 64... g3 {[%clk 0:00:20.3]} 65. Rd4
{[%clk 0:00:48.3]} 65... Kg4 {[%clk 0:00:20.7]} 66. Kg1 {[%clk 0:00:47.4]} 66...
h4 {[%clk 0:00:21.1]} 67. Rd1 {[%clk 0:00:43.7]} 67... h3 {[%clk 0:00:20.7]} 68.
Kf1 {[%clk 0:00:43.7]} 68... Kf3 {[%clk 0:00:20.2]} 69. Rd3+ {[%clk 0:00:43.5]}
69... Be3 {[%clk 0:00:20.7]} 70. Ke1 {[%clk 0:00:40.6]} 70... Rc1+ {[%clk
0:00:20.2]} 71. Rd1 {[%clk 0:00:40.3]} 71... Rxd1+ {[%clk 0:00:20.4]} 72. Kxd1
{[%clk 0:00:41.2]} 72... g2 {[%clk 0:00:20.4]} 73. Kc2 {[%clk 0:00:42.1]} 73...
g1=Q {[%clk 0:00:20.8]} 74. Kd3 {[%clk 0:00:43]} 0-1

[Event "*** SCC Grand Prix: Titled Tuesday Blitz"]
[Site "Chess.com"]
[Date "2020.07.07"]
[Round "4"]
[White "doctorcristian"]
[Black "FMOlexandrProhorov"]
[Result "1-0"]
[WhiteElo "2399"]
[BlackElo "2134"]
[TimeControl "180+1"]
[EndTime "10:40:47 PDT"]
[Termination "doctorcristian won by resignation"]

1. d4 {[%clk 0:02:43.4]} 1... g6 {[%clk 0:02:59.4]} 2. e4 {[%clk 0:02:42.6]}
2... Bg7 {[%clk 0:02:59.5]} 3. Nc3 {[%clk 0:02:42.3]} 3... c6 {[%clk 0:02:59.8]}
4. Be3 {[%clk 0:02:41.4]} 4... d5 {[%clk 0:02:59.7]} 5. Qd2 {[%clk 0:02:41.1]}
5... dxe4 {[%clk 0:02:56.8]} 6. Nxe4 {[%clk 0:02:40.4]} 6... Nf6 {[%clk
0:02:56.4]} 7. Nxf6+ {[%clk 0:02:39.8]} 7... Bxf6 {[%clk 0:02:56.4]} 8. O-O-O
{[%clk 0:02:37]} 8... Nd7 {[%clk 0:02:51.2]} 9. h4 {[%clk 0:02:36.4]} 9... h5
{[%clk 0:02:50.3]} 10. Nf3 {[%clk 0:02:35.7]} 10... Nb6 {[%clk 0:02:49.4]} 11.
Bg5 {[%clk 0:02:32.9]} 11... Nd5 {[%clk 0:02:39.4]} 12. Bxf6 {[%clk 0:02:30]}
12... Nxf6 {[%clk 0:02:38.6]} 13. Ne5 {[%clk 0:02:29.3]} 13... Be6 {[%clk
0:02:35.9]} 14. Kb1 {[%clk 0:02:21.6]} 14... Qc7 {[%clk 0:02:35.7]} 15. f3
{[%clk 0:02:18.9]} 15... O-O-O {[%clk 0:02:34.7]} 16. Be2 {[%clk 0:02:09.9]}
16... Kb8 {[%clk 0:02:27.9]} 17. Qc1 {[%clk 0:01:28.9]} 17... c5 {[%clk
0:02:23.3]} 18. c3 {[%clk 0:01:28.3]} 18... cxd4 {[%clk 0:02:07.3]} 19. cxd4
{[%clk 0:01:27.9]} 19... Qa5 {[%clk 0:02:07.3]} 20. b3 {[%clk 0:01:23.7]} 20...
Nd5 {[%clk 0:02:02.6]} 21. Kb2 {[%clk 0:01:13.8]} 21... Rc8 {[%clk 0:01:51.9]}
22. Nc4 {[%clk 0:01:06.9]} 22... Qb4 {[%clk 0:01:44.6]} 23. Qd2 {[%clk
0:01:05.9]} 23... Qxd2+ {[%clk 0:01:32.5]} 24. Rxd2 {[%clk 0:01:04.7]} 24...
Rhd8 {[%clk 0:01:30.8]} 25. a3 {[%clk 0:00:59.1]} 25... Nf4 {[%clk 0:01:30.5]}
26. Bf1 {[%clk 0:00:51.4]} 26... Bf5 {[%clk 0:01:18]} 27. g3 {[%clk 0:00:48.9]}
27... Nd5 {[%clk 0:01:14.2]} 28. Be2 {[%clk 0:00:47.4]} 28... f6 {[%clk
0:01:10]} 29. Rhd1 {[%clk 0:00:44.6]} 29... b5 {[%clk 0:00:59.3]} 30. Na5 {[%clk
0:00:43.5]} 30... Nc3 {[%clk 0:00:58]} 31. Re1 {[%clk 0:00:40.6]} 31... Nxe2
{[%clk 0:00:53.1]} 32. Rexe2 {[%clk 0:00:40.1]} 32... e6 {[%clk 0:00:53.4]} 33.
Rf2 {[%clk 0:00:29.1]} 33... Rd6 {[%clk 0:00:49.8]} 34. g4 {[%clk 0:00:28.3]}
34... hxg4 {[%clk 0:00:48.7]} 35. fxg4 {[%clk 0:00:28.1]} 35... Bxg4 {[%clk
0:00:48.9]} 36. Rxf6 {[%clk 0:00:27.9]} 36... Bf5 {[%clk 0:00:43.3]} 37. Rf7
{[%clk 0:00:26.9]} 37... a6 {[%clk 0:00:35.8]} 38. Rb7+ {[%clk 0:00:25.4]} 38...
Ka8 {[%clk 0:00:35.6]} 39. Re7 {[%clk 0:00:24]} 39... Rh8 {[%clk 0:00:32.4]} 40.
Re2 {[%clk 0:00:13.6]} 40... Rxh4 {[%clk 0:00:30.2]} 41. Re1 {[%clk 0:00:10.7]}
41... Rh2+ {[%clk 0:00:29.2]} 42. Ka1 {[%clk 0:00:08.7]} 42... Rxd4 {[%clk
0:00:20.1]} 43. Nc6 {[%clk 0:00:06.9]} 1-0